bitfinex/quotes_ETHUSD_20251206
["timestamp","ask_amount","ask_price","bid_price","bid_amount"]
[1765013038803,0.4836,3028.8,3028.7,3.30174662]
[1765013039000,0.4836,3028.8,3028.5,0.523]
[1765013039188,0.4635,3028.6,3028.5,3.8249249]
[1765013039707,0.9421,3028.6,3028.5,3.8249249]
[1765013041785,0.4635,3028.6,3028.5,3.8249249]
[1765013041972,0.9421,3028.6,3028.5,5.09346972]
[1765013042295,0.4635,3028.6,3028.5,5.09346972]
[1765013042502,0.4806,3028.8,3028.5,8.39543438]
[1765013042707,0.4806,3028.8,3028.5,5.09346972]
[1765013042870,0.4974,3028.6,3028.5,5.09346972]
[1765013043305,0.976,3028.6,3028.5,5.09346972]
[1765013045906,0.4974,3028.6,3028.5,5.09346972]
[1765013047208,0.4806,3028.8,3028.5,8.39543438]
[1765013047712,0.002,3028.8,3028.7,0.3285]
[1765013047891,0.002,3028.8,3028.7,4.35584073]
[1765013048086,0.002,3028.8,3028.7,14.50963773]
[1765013048290,0.002,3028.8,3028.7,18.75514173]
[1765013048490,0.002,3028.8,3028.7,21.92914514]
[1765013048706,0.002,3028.8,3028.7,15.06394814]
[1765013049006,0.002,3028.8,3028.7,12.25394814]
[1765013049207,0.002,3028.8,3028.7,12.37044414]
[1765013054624,0.002,3028.8,3028.7,12.04194414]
[1765013055122,0.967,3028.8,3028.7,12.04194414]
[1765013055722,0.5005,3028.8,3028.7,12.04194414]
[1765013056219,0.002,3028.8,3028.7,12.04194414]
[1765013061615,0.5005,3028.8,3028.7,12.04194414]
[1765013061822,0.967,3028.8,3028.7,12.04194414]
[1765013061996,0.5005,3028.8,3028.7,11.51994414]
[1765013062209,0.967,3028.8,3028.7,11.56334414]
[1765013065315,0.967,3028.8,3028.7,8.38934073]
[1765013065918,0.967,3028.8,3028.7,7.86734073]
[1765013066130,0.967,3028.8,3028.7,4.54934073]
[1765013069040,0.967,3028.8,3028.5,0.001]
[1765013069341,0.4802,3028.6,3028.5,0.001]
[1765013069550,0.4802,3028.6,3028.5,4.02855877]
[1765013069712,0.9467,3028.6,3028.5,4.02855877]
[1765013070110,0.9467,3028.6,3028.5,0.72659411]
[1765013070514,0.9467,3028.6,3028.5,0.001]
[1765013073245,1.37174307,3028.6,3028.5,0.001]
[1765013078821,2.36457811,3028.6,3028.5,0.001]
[1765013079117,5.66643375,3028.6,3028.5,0.001]
[1765013079747,1.37174307,3028.6,3028.5,0.001]
[1765013080051,0.9467,3028.6,3028.5,0.001]
[1765013085826,0.9487,3028.6,3028.5,0.001]
[1765013091747,0.953,3028.6,3028.5,0.001]
[1765013092462,0.4822,3028.6,3028.5,0.001]
[1765013093355,0.953,3028.6,3028.5,0.001]
[1765013093665,0.4822,3028.6,3028.5,0.001]
[1765013094365,0.953,3028.6,3028.5,0.001]
[1765013096364,1.47795934,3028.6,3028.5,0.001]
[1765013096562,11.66212846,3028.6,3028.5,0.001]
[1765013098170,5.77265002,3028.6,3028.5,0.001]
[1765013101049,1.47795934,3028.6,3028.5,0.001]
[1765013101254,0.953,3028.6,3028.5,0.001]
[1765013101672,0.002,3028.6,3028.5,0.001]
[1765013102045,0.5001,3028.6,3028.5,0.001]
[1765013102244,0.9709,3028.6,3028.5,0.001]
[1765013103447,0.5001,3028.6,3028.5,0.001]
[1765013103875,0.9709,3028.6,3028.5,0.001]
[1765013104578,10.94775543,3028.6,3028.5,0.001]
[1765013104877,11.04775543,3028.6,3028.5,0.001]
[1765013105856,11.14775543,3028.6,3028.5,0.001]
[1765013106169,11.04775543,3028.6,3028.5,0.001]
[1765013107275,11.14775543,3028.6,3028.5,0.001]
[1765013107658,5.15827699,3028.6,3028.5,0.001]
[1765013107858,11.04775543,3028.6,3028.5,0.001]
[1765013108951,5.05827699,3028.6,3028.5,0.001]
[1765013109482,0.5001,3028.6,3028.5,0.001]
[1765013109778,0.002,3028.6,3028.5,0.001]
[1765013110151,0.002,3028.6,3028.5,0.3295]
[1765013110882,0.002,3028.6,3028.5,6.54747844]
[1765013111069,0.002,3028.6,3028.5,6.21897844]
[1765013111269,0.002,3028.6,3028.5,6.99235979]
[1765013111475,0.002,3028.6,3028.5,7.32085979]
[1765013113587,0.002,3028.6,3028.5,10.62282445]
[1765013115184,0.002,3028.6,3028.5,17.237897]
[1765013115487,0.002,3028.6,3028.5,17.37004867]
[1765013116185,0.002,3028.6,3028.5,28.37947667]
[1765013116888,0.002,3028.6,3028.5,27.56647667]
[1765013120609,0.4987,3028.6,3028.5,4.16071044]
[1765013120891,0.002,3028.6,3028.5,4.68555877]
[1765013121685,0.002,3028.6,3028.5,4.35705877]
[1765013123406,0.002,3028.6,3028.5,4.39007841]
[1765013126480,0.002,3028.6,3028.5,4.35705877]
[1765013127113,0.002,3028.6,3028.5,5.90947149]
[1765013127410,0.002,3028.6,3028.5,6.04163757]
[1765013128903,0.002,3028.6,3028.5,6.37013757]
[1765013131483,0.002,3028.6,3028.5,10.21013757]
[1765013131988,0.002,3028.6,3028.5,9.55313757]
[1765013132192,0.002,3028.6,3028.5,10.07513757]
[1765013132711,0.002,3028.6,3028.5,10.40363757]
[1765013134116,0.002,3028.6,3028.5,25.40162401]
[1765013134611,0.002,3028.6,3028.5,19.51214557]
[1765013134814,0.002,3028.6,3028.5,16.58289657]
[1765013136018,0.002,3028.6,3028.5,25.73734601]
[1765013137015,0.002,3028.6,3028.5,26.53971101]
[1765013137222,0.002,3028.6,3028.5,26.20159901]
[1765013138104,0.002,3028.6,3028.5,31.96012901]
[1765013138485,0.002,3028.6,3028.5,31.95517051]
[1765013139015,0.002,3028.6,3028.5,17.02216151]
[1765013139220,0.002,3028.6,3028.5,32.29091751]
[1765013140221,0.002,3028.6,3028.5,39.07729751]
[1765013140614,0.002,3028.6,3028.5,38.69017651]
[1765013141004,0.002,3028.6,3028.5,16.69366151]
[1765013141526,0.002,3028.6,3028.5,21.66198951]
[1765013142025,0.002,3028.6,3028.5,24.48699951]
[1765013143027,0.002,3028.6,3028.5,24.49131451]
[1765013143425,0.002,3028.6,3028.5,24.16281451]
[1765013143615,0.002,3028.6,3028.5,20.65131451]
[1765013144222,0.002,3028.6,3028.5,43.18216151]
[1765013147530,0.002,3028.6,3028.5,30.86275451]
[1765013148026,0.002,3028.6,3028.5,13.18216151]
[1765013148325,0.002,3028.6,3028.5,43.18216151]
[1765013153154,0.002,3028.6,3028.5,12.85366151]
[1765013153431,0.002,3028.6,3028.5,43.18216151]
[1765013154926,0.002,3028.6,3028.5,20.29747651]
[1765013155238,0.002,3028.6,3028.5,36.98332351]
[1765013155598,0.002,3028.6,3028.5,26.79173651]
[1765013155997,0.002,3028.6,3028.5,25.97224451]
[1765013156226,0.002,3028.6,3028.5,21.59071751]
[1765013156537,0.002,3028.6,3028.5,20.32471751]
[1765013157349,0.4946,3028.6,3028.5,12.00316151]
[1765013157632,0.4946,3028.6,3028.5,12.52516151]
[1765013158221,0.9562,3028.6,3028.5,16.36516151]
[1765013160408,0.9562,3028.6,3028.5,15.43765751]
[1765013160610,0.9562,3028.6,3028.5,15.95965751]
[1765013160943,0.002,3028.6,3028.5,32.57859051]
[1765013161138,0.002,3028.6,3028.5,31.01994551]
[1765013161638,0.4946,3028.6,3028.5,18.51557251]
[1765013162433,0.002,3028.6,3028.5,18.84407251]
[1765013163521,0.002,3028.6,3028.5,15.00407251]
[1765013163908,0.002,3028.6,3028.5,26.84076251]
[1765013164108,0.002,3028.6,3028.5,24.34039351]
[1765013164309,0.002,3028.6,3028.5,21.07856351]
[1765013165052,0.002,3028.6,3028.5,23.66732451]
[1765013165252,0.002,3028.6,3028.5,15.43414151]
[1765013165462,0.002,3028.6,3028.5,15.10564151]
[1765013165826,0.002,3028.6,3028.5,12.44815751]
[1765013166021,0.002,3028.6,3028.5,21.78101951]
[1765013166931,0.002,3028.6,3028.5,26.45452551]
[1765013167349,0.002,3028.6,3028.5,20.24851151]
[1765013167653,0.002,3028.6,3028.5,12.11965751]
[1765013167654,0.9562,3028.6,3028.5,12.11965751]
[1765013169047,0.9562,3028.6,3028.5,11.98749143]
[1765013170475,0.9562,3028.6,3028.5,10.43507871]
[1765013171171,0.9704,3028.6,3028.5,10.43507871]
[1765013172623,0.9704,3028.6,3028.5,3.30296466]
[1765013172828,0.9704,3028.6,3028.5,3.82496466]
[1765013173023,0.4946,3028.6,3028.5,4.02855877]
[1765013173335,0.4946,3028.6,3028.5,10.43507871]
[1765013173718,0.9704,3028.6,3028.5,10.43507871]
[1765013174854,0.002,3028.6,3028.5,10.76357871]
[1765013175072,0.002,3028.6,3028.5,37.6875313]
[1765013175229,0.002,3028.8,3028.7,34.43284473]
[1765013175429,0.002,3028.8,3028.7,35.08984473]
[1765013175750,0.002,3028.8,3028.7,35.22197152]
[1765013175958,0.002,3028.8,3028.7,38.41013705]
[1765013176362,0.002,3028.8,3028.7,37.31772905]
[1765013176955,0.002,3028.8,3028.7,14.52179905]
[1765013177154,0.002,3028.8,3028.7,13.09294305]
[1765013177460,0.002,3028.8,3028.7,13.61494305]
[1765013177755,0.002,3028.8,3028.7,13.61394305]
[1765013178055,0.002,3028.8,3028.7,24.30477805]
[1765013179160,0.002,3028.8,3028.7,28.12030505]
[1765013180054,0.002,3028.8,3028.7,28.53130505]
[1765013180267,0.002,3028.8,3028.7,25.18971605]
[1765013181168,0.002,3028.8,3028.7,26.97053105]
[1765013182051,0.002,3028.8,3028.7,26.44953105]
[1765013182257,0.002,3028.8,3028.7,24.68934205]
[1765013183257,0.4693,3028.8,3028.7,13.93996905]
[1765013183556,0.9451,3028.8,3028.7,8.27413705]
[1765013183862,0.9451,3028.8,3028.7,7.01091215]
[1765013184065,0.9451,3028.8,3028.7,7.73650626]
[1765013184367,0.9451,3028.8,3028.7,7.01091215]
[1765013184938,0.002,3028.8,3028.7,38.47051026]
[1765013185150,0.002,3028.8,3028.7,26.26653726]
[1765013186034,0.002,3028.8,3028.7,22.02503526]
[1765013186967,0.002,3028.8,3028.7,9.74411026]
[1765013187173,0.002,3028.8,3028.7,25.85698326]
[1765013187776,1e-08,3029.0,3028.7,25.52848326]
[1765013187982,1e-08,3029.0,3028.9,38.14298169]
[1765013188446,1e-08,3029.0,3028.9,38.99248169]
[1765013188774,1e-08,3029.0,3028.9,42.48798169]
[1765013188974,1e-08,3029.0,3028.9,42.6200919]
[1765013189274,1e-08,3029.3,3029.2,31.59319811]
[1765013189473,1e-08,3029.3,3029.2,40.63703786]
[1765013189776,1e-08,3029.3,3029.2,40.96553786]
[1765013189979,1e-08,3029.3,3029.2,44.92853949]
[1765013193770,1e-08,3029.3,3029.2,48.76853949]
[1765013194669,1e-08,3029.3,3029.2,49.4359118]
[1765013196359,0.002,3029.5,3029.4,31.13109811]
[1765013196555,0.002,3029.5,3029.4,40.31450113]
[1765013197178,0.002,3029.5,3029.4,39.43388313]
[1765013197781,0.002,3029.5,3029.4,40.64300113]
[1765013198085,0.002,3029.5,3029.4,41.30490113]
[1765013198379,0.002,3029.5,3029.4,53.06491479]
[1765013200853,0.002,3029.5,3029.4,52.73641479]
[1765013201053,0.002,3029.5,3029.4,43.62965179]
[1765013201663,0.9385,3029.5,3029.4,14.87580985]
[1765013201994,0.9385,3029.5,3029.4,3.82198369]
[1765013202199,0.9385,3029.5,3029.4,4.5475778]
[1765013204104,0.9385,3029.5,3029.4,10.42758463]
[1765013206363,0.002,3029.5,3029.4,16.63609146]
[1765013206564,0.002,3029.5,3029.4,32.26427827]
[1765013206810,0.002,3029.5,3029.4,29.77196627]
[1765013207013,0.002,3029.5,3029.4,29.44346627]
[1765013207209,0.4619,3029.5,3029.4,23.56345944]
[1765013207710,0.4619,3029.5,3029.4,24.68311944]
[1765013208219,0.4619,3029.5,3029.4,30.56312627]
[1765013208505,0.4619,3029.5,3029.4,34.94197627]
[1765013209208,0.002,3029.5,3029.4,34.94197627]
[1765013209511,0.002,3029.5,3029.4,44.08066527]
[1765013209814,0.002,3029.5,3029.4,34.70929127]
[1765013210694,0.002,3029.5,3029.4,37.54057927]
[1765013211299,0.002,3029.5,3029.4,30.78440444]
[1765013211715,0.002,3029.5,3029.4,34.61315544]
[1765013212680,0.002,3029.5,3029.4,35.41114144]
[1765013212877,0.002,3029.5,3029.4,41.29114827]
[1765013213293,0.002,3029.5,3029.4,40.77014827]
[1765013213495,0.002,3029.5,3029.4,41.29114827]
[1765013213712,0.002,3029.5,3029.4,41.55631227]
[1765013213913,0.002,3029.5,3029.4,41.92920951]
[1765013214817,0.002,3029.5,3029.4,47.26556151]
[1765013215814,0.002,3029.5,3029.4,52.63032751]
[1765013216006,0.002,3029.5,3029.4,52.27592151]
[1765013216414,0.002,3029.5,3029.4,44.73578627]
[1765013216810,0.002,3029.5,3029.4,47.66994627]
[1765013216981,0.002,3029.5,3029.4,46.07819427]
[1765013217187,0.002,3029.5,3029.4,41.20405027]
[1765013217706,0.002,3029.5,3029.4,53.84380827]
[1765013218817,0.002,3029.5,3029.4,26.68253544]
[1765013218818,0.9676,3029.5,3029.4,26.68253544]
[1765013219183,0.4824,3029.5,3029.4,26.68253544]
[1765013219612,0.4824,3029.5,3029.4,32.56254227]
[1765013219820,0.4824,3029.5,3029.4,42.80234927]
[1765013220617,0.4824,3029.5,3029.4,27.82173644]
[1765013220816,0.9676,3029.5,3029.4,36.24479144]
[1765013220993,0.4824,3029.5,3029.4,42.64579827]
[1765013221394,0.002,3030.2,3029.9,0.405504]
[1765013221722,0.1937,3031.0,3030.9,7.01110494]
[1765013221895,0.1937,3031.0,3030.9,7.53210494]
[1765013222215,1.1593,3031.0,3030.9,6.60560094]
[1765013222390,1.1593,3031.0,3030.9,1.24659411]
[1765013222591,1.1593,3031.0,3030.9,4.54594413]
[1765013225434,1.1593,3031.0,3030.9,10.42595096]
[1765013227113,1.1593,3031.0,3030.9,4.54594413]
[1765013228532,1.1593,3031.0,3030.9,4.02494413]
[1765013228831,1.1593,3031.0,3030.9,4.54594413]
[1765013229016,1.1593,3031.0,3030.9,4.02494413]
[1765013229354,0.464,3031.6,3031.1,0.405504]
[1765013229502,0.472,3031.2,3031.1,6.60560094]
[1765013229702,0.472,3031.2,3031.1,7.12660094]
[1765013230044,0.936,3031.2,3031.1,7.59860094]
[1765013230615,0.936,3031.2,3031.1,10.89773326]
[1765013232136,0.936,3031.2,3031.1,13.05288059]
[1765013232137,0.472,3031.2,3031.1,13.05288059]
[1765013232324,0.472,3031.2,3031.1,12.64737659]
[1765013232325,0.936,3031.2,3031.1,12.64737659]
[1765013235040,0.936,3031.2,3031.1,12.12637659]
[1765013235216,0.472,3031.2,3031.1,12.64737659]
[1765013235421,0.936,3031.2,3031.1,12.64737659]
[1765013236729,0.936,3031.2,3031.1,12.12637659]
[1765013236928,0.936,3031.2,3031.1,5.01772643]
[1765013237445,0.936,3031.2,3031.1,4.02472643]
[1765013237645,0.936,3031.2,3031.1,4.54572643]
[1765013241052,0.938,3031.2,3031.1,4.54572643]
[1765013243287,1.19273504,3032.0,3031.2,14.61807711]
[1765013243288,0.1999,3032.0,3031.2,14.61807711]
[1765013243431,0.464,3031.7,3031.6,6.60560094]
[1765013243954,0.936,3031.7,3031.6,7.12660094]
[1765013244272,0.936,3031.7,3031.6,7.59060094]
[1765013244957,0.936,3031.7,3031.6,10.88918914]
[1765013245326,0.936,3031.7,3031.6,10.36818914]
[1765013245526,0.936,3031.7,3031.6,10.88918914]
[1765013245740,0.936,3031.7,3031.6,4.54518231]
[1765013248558,0.936,3031.7,3031.6,1.24659411]
[1765013248726,0.936,3031.7,3031.1,4.29191684]
[1765013248925,0.1999,3032.0,3031.1,0.99283504]
[1765013248926,0.472,3031.2,3031.1,0.99283504]
[1765013249233,0.936,3031.2,3031.1,1.51383504]
[1765013249559,0.936,3031.2,3031.1,2.23942915]
[1765013250061,0.936,3031.2,3031.1,5.53856147]
[1765013250431,0.936,3031.2,3030.8,9.17944637]
[1765013250750,0.464,3031.1,3031.0,3.29916963]
[1765013250934,0.464,3031.1,3031.0,3.82016963]
[1765013251129,0.936,3031.1,3031.0,3.82016963]
[1765013251536,0.936,3031.1,3031.0,3.29916963]
[1765013251731,0.1999,3032.0,3031.2,3.29902348]
[1765013251948,0.464,3031.5,3031.4,6.87284187]
[1765013252352,0.936,3031.5,3031.4,10.1716477]
[1765013254062,0.936,3031.5,3031.4,9.17881266]
[1765013254243,0.936,3031.5,3031.4,3.29880583]
[1765013254443,0.936,3031.5,3031.2,3.29902348]
[1765013254678,0.472,3031.3,3031.2,4.02461759]
[1765013254844,0.472,3031.3,3031.2,4.54561759]
[1765013255041,0.936,3031.3,3031.2,4.54561759]
[1765013255240,0.936,3031.3,3031.2,4.02461759]
[1765013255454,0.936,3031.3,3031.2,4.54561759]
[1765013255651,0.936,3031.3,3031.2,4.02461759]
[1765013255851,0.936,3031.3,3031.2,4.54561759]
[1765013256745,0.936,3031.3,3031.2,4.02461759]
[1765013256947,0.936,3031.3,3031.2,4.54561759]
[1765013259446,0.936,3031.3,3031.2,4.02461759]
[1765013259775,0.938,3031.3,3031.2,4.54561759]
[1765013260778,0.938,3031.3,3031.2,3.82002348]
[1765013263675,0.938,3031.3,3031.2,3.29902348]
[1765013263878,0.938,3031.3,3031.1,3.82105554]
[1765013264097,0.9479,3031.2,3031.1,3.82105554]
[1765013266491,0.9479,3031.2,3031.1,3.30005554]
[1765013266793,0.9479,3031.2,3031.1,3.82105554]
[1765013266980,0.4549,3031.2,3031.1,3.82105554]
[1765013267173,0.9479,3031.2,3031.1,3.82105554]
[1765013277686,0.9479,3031.2,3031.1,3.30005554]
[1765013277893,0.9479,3031.2,3031.1,3.82105554]
[1765013280297,0.002,3031.3,3031.1,3.82105554]
[1765013280503,0.4753,3031.3,3031.1,5.22017024]
[1765013281205,0.002,3031.3,3031.2,0.99283504]
[1765013281775,0.9333,3031.3,3031.2,4.29185852]
[1765013282594,0.9333,3031.3,3031.2,4.81285852]
[1765013282902,0.46,3031.3,3031.2,3.82002348]
[1765013283094,0.9333,3031.3,3031.2,3.82002348]
[1765013283301,0.9333,3031.3,3031.2,4.63141489]
[1765013284702,0.9333,3031.3,3031.2,4.11041489]
[1765013285007,0.9333,3031.3,3031.2,3.82002348]
[1765013285209,0.9333,3031.3,3031.1,3.30011891]
[1765013285503,0.9313,3031.2,3031.1,3.30013232]
[1765013285707,0.9313,3031.2,3031.1,3.82113232]
[1765013286004,0.9313,3031.2,3031.1,0.001]
[1765013286204,1.35452162,3031.2,3031.1,0.001]
[1765013286424,0.9313,3031.2,3031.1,0.001]
[1765013287114,0.405504,3030.9,3029.9,3.30035738]
[1765013287412,0.458,3030.2,3029.9,3.30035738]
[1765013287780,0.9313,3030.2,3029.9,3.30035738]
[1765013288984,0.458,3030.2,3030.1,3.82322111]
[1765013289405,0.9336,3030.2,3030.1,3.82322111]
[1765013289904,0.9336,3030.2,3030.1,3.30122111]
[1765013290109,0.9336,3030.2,3030.1,3.82322111]
[1765013290306,0.9336,3030.2,3030.1,3.30122111]
[1765013290510,0.9336,3030.2,3030.1,3.82322111]
[1765013290814,0.9336,3030.2,3030.1,0.523]
[1765013290984,0.9336,3030.2,3030.1,0.001]
[1765013291190,0.9336,3030.2,3030.1,0.523]
[1765013292090,0.458,3030.2,3030.1,0.523]
[1765013292295,0.458,3030.2,3030.1,3.82322111]
[1765013293177,0.9336,3030.2,3030.1,3.82322111]
[1765013294696,0.6588,3030.9,3030.2,0.72559411]
[1765013295012,0.4756,3030.8,3030.3,0.3285]
[1765013295804,0.4756,3030.8,3030.4,0.522]
[1765013296178,0.4735,3030.5,3030.4,0.522]
[1765013297922,0.4756,3030.7,3030.4,0.522]
[1765013298416,0.002,3031.3,3030.7,0.72559411]
[1765013298614,0.002,3031.3,3031.0,0.72559411]
[1765013298803,0.002,3031.3,3031.2,0.3285]
[1765013299011,0.002,3031.3,3031.2,4.14952348]
[1765013299410,0.002,3031.3,3031.2,11.898085]
[1765013299920,0.002,3031.3,3031.2,11.569585]
[1765013300493,0.002,3031.3,3031.2,5.69254363]
[1765013303823,0.002,3031.3,3031.2,6.02104363]
[1765013312411,0.002,3031.3,3031.2,5.69254363]
[1765013315533,0.002,3031.3,3031.2,9.53254363]
[1765013317541,0.002,3031.3,3031.2,9.01054363]
[1765013317944,0.002,3031.3,3031.2,9.53154363]
[1765013318552,0.002,3031.3,3031.2,9.01054363]
[1765013318854,0.002,3031.3,3031.2,9.53154363]
[1765013321142,0.002,3031.3,3031.2,5.69154363]
[1765013321661,0.002,3031.3,3031.2,6.02004363]
[1765013322221,0.002,3031.3,3031.2,5.36304363]
[1765013322542,0.4804,3031.3,3031.2,11.23867265]
[1765013322752,0.002,3031.3,3031.2,11.23867265]
[1765013325944,0.4804,3031.3,3031.2,11.23867265]
[1765013326121,0.9433,3031.3,3031.2,10.42124661]
[1765013327047,0.002,3031.3,3031.2,10.42124661]
[1765013327418,0.4804,3031.3,3031.2,10.42124661]
[1765013327848,0.002,3031.3,3031.2,10.42124661]
[1765013329120,0.4804,3031.3,3031.2,10.42124661]
[1765013330159,0.002,3031.3,3031.2,10.42124661]
[1765013330367,0.002,3031.3,3031.2,12.22258307]
[1765013331130,0.002,3031.3,3031.2,12.55108307]
[1765013331928,0.002,3031.3,3031.2,18.75521209]
[1765013333152,0.002,3031.3,3031.2,24.89530909]
[1765013333387,0.002,3031.3,3031.2,28.73530909]
[1765013333553,0.002,3031.3,3031.2,28.40680909]
[1765013333764,0.002,3031.3,3031.2,28.86970909]
[1765013334259,0.002,3031.3,3031.2,23.59590307]
[1765013334458,0.002,3031.3,3031.2,29.47153209]
[1765013335135,0.002,3031.3,3031.2,36.28666109]
[1765013336159,0.002,3031.3,3031.2,37.86722009]
[1765013337121,0.002,3031.3,3031.2,22.72961209]
[1765013337326,0.002,3031.3,3031.2,37.92995909]
[1765013337855,0.002,3031.3,3031.2,36.13529009]
[1765013338565,0.002,3031.3,3031.2,37.74782009]
[1765013338753,0.002,3031.3,3031.2,36.60331209]
[1765013338956,0.002,3031.3,3031.2,22.17285007]
[1765013339569,0.002,3031.3,3031.2,24.41799307]
[1765013340459,0.002,3031.3,3031.2,32.76055007]
[1765013340766,0.002,3031.3,3031.2,38.96467909]
[1765013341529,0.002,3031.3,3031.2,38.96432709]
[1765013342265,0.002,3031.3,3031.2,19.68599107]
[1765013342629,0.002,3031.3,3031.2,19.71404107]
[1765013343270,0.002,3031.3,3031.2,26.32367409]
[1765013343561,0.002,3031.3,3031.2,54.37912812]
[1765013343965,0.6508,3032.3,3032.2,5.87562902]
[1765013344130,0.6508,3032.3,3032.2,0.521]
[1765013344479,1.1497,3032.3,3032.2,6.39662902]
[1765013344636,0.186,3032.5,3032.2,9.69456451]
[1765013345044,0.4989,3032.3,3032.2,9.69456451]
[1765013345444,0.9498,3032.3,3032.2,9.69456451]
[1765013348252,0.1875,3033.1,3032.3,2.22246]
[1765013348568,0.4509,3032.7,3032.3,3.3216]
[1765013349081,0.4509,3032.7,3032.5,5.87562902]
[1765013349280,0.4509,3032.7,3032.6,0.521]
[1765013349647,0.9321,3032.7,3032.6,0.521]
[1765013351268,0.4812,3032.7,3032.6,5.4215846]
[1765013351470,0.9798,3032.7,3032.6,10.41972362]
[1765013352482,0.9818,3032.7,3032.6,10.41972362]
[1765013354577,0.9818,3032.7,3032.6,3.81850049]
[1765013355678,0.4832,3032.7,3032.6,3.81850049]
[1765013356073,0.9818,3032.7,3032.6,3.81850049]
[1765013358294,0.9818,3032.7,3032.6,0.521]
[1765013359284,0.9818,3032.7,3032.4,3.29761779]
[1765013359486,0.4812,3032.5,3032.4,3.81861779]
[1765013359978,0.9798,3032.5,3032.4,3.81861779]
[1765013363085,0.9798,3032.5,3032.3,3.81879948]
[1765013363410,0.4986,3032.4,3032.3,3.81879948]
[1765013363594,0.9798,3032.4,3032.3,3.81879948]
[1765013365191,0.9798,3032.4,3031.8,10.44122313]
[1765013365192,0.9798,3032.4,3031.6,6.86846406]
[1765013365379,0.4812,3032.2,3031.9,3.29821706]
[1765013365690,0.6896,3032.3,3031.9,1.24659411]
[1765013365862,0.4812,3032.0,3031.9,4.54485449]
[1765013366392,0.9798,3032.0,3031.9,4.54485449]
[1765013368196,0.9798,3032.0,3031.9,1.24659411]
[1765013368896,0.9798,3032.0,3031.9,4.54485592]
[1765013369272,0.9798,3032.0,3031.9,4.02385592]
[1765013369485,0.9798,3032.0,3031.9,4.54485592]
[1765013369795,0.9798,3032.0,3031.8,0.521]
[1765013370098,0.4986,3031.9,3031.8,0.521]
[1765013370390,0.9798,3031.9,3031.8,0.521]
[1765013370937,0.9798,3031.9,3031.8,3.81935831]
[1765013371691,0.9798,3031.9,3031.8,0.521]
[1765013373297,0.9798,3031.9,3031.8,3.8193706]
[1765013374894,0.9798,3031.9,3031.8,0.521]
[1765013376693,0.9798,3031.9,3031.6,3.29850783]
[1765013376893,0.4812,3031.7,3031.6,3.29850783]
[1765013377199,0.4812,3031.7,3031.6,0.521]
[1765013377398,0.9798,3031.7,3031.6,0.521]
[1765013378193,0.9798,3031.7,3031.3,7.32442341]
[1765013378419,0.99283504,3032.2,3031.6,0.521]
[1765013378895,0.4812,3031.7,3031.6,0.521]
[1765013379087,0.4812,3031.7,3031.6,3.8195882]
[1765013379282,0.9767,3031.7,3031.6,3.8195882]
[1765013380601,0.191,3032.3,3031.6,7.4466764]
[1765013380907,0.6865,3032.3,3031.8,5.87562902]
[1765013381102,0.6865,3032.3,3031.9,6.59652362]
[1765013381297,0.4955,3032.2,3032.0,0.521]
[1765013381514,0.002,3032.7,3032.2,0.4621]
[1765013381801,0.002,3032.7,3032.6,0.3285]
[1765013382018,0.002,3032.7,3032.6,0.521]
[1765013383420,0.002,3032.7,3032.6,4.8725946]
[1765013383717,0.002,3032.7,3032.6,6.78144253]
[1765013383883,0.002,3032.7,3032.6,5.26760749]
[1765013384214,0.002,3032.7,3032.6,4.5440946]
[1765013384594,0.002,3032.7,3032.6,4.8725946]
[1765013386710,0.9695,3032.7,3032.6,4.5440946]
[1765013387289,0.474,3032.7,3032.6,4.5440946]
[1765013387489,0.9695,3032.7,3032.6,4.5440946]
[1765013388604,0.9695,3032.7,3032.6,3.81850049]
[1765013389097,0.474,3032.7,3032.6,3.29750049]
[1765013389300,0.9695,3032.7,3032.4,0.521]
[1765013389495,0.472,3032.5,3032.4,4.54421646]
[1765013389723,0.472,3032.5,3032.4,3.81862235]
[1765013390027,0.9675,3032.5,3032.4,3.81862235]
[1765013390826,0.9675,3032.5,3032.2,3.29787413]
[1765013391000,0.4824,3032.3,3031.6,6.86414941]
[1765013391201,0.4824,3032.1,3031.7,0.521]
[1765013391516,0.4824,3032.1,3031.7,1.24659411]
[1765013391906,0.4824,3032.1,3031.8,6.5967412]
[1765013392318,0.4824,3032.1,3031.8,7.58957624]
[1765013393827,0.682,3031.9,3031.8,0.72559411]
[1765013394126,0.682,3031.9,3031.8,1.24659411]
[1765013394313,1.1401,3031.9,3031.8,1.24659411]
[1765013396828,0.4824,3031.9,3031.8,1.24659411]
[1765013397129,0.4581,3032.2,3031.8,10.41626849]
[1765013397936,0.4581,3032.5,3031.8,13.71463909]
[1765013398136,0.4581,3032.5,3031.8,14.04313909]
[1765013398295,0.4581,3032.5,3031.8,14.43163667]
[1765013400227,0.4581,3032.5,3031.8,1.24659411]
[1765013400228,0.682,3031.9,3031.8,1.24659411]
[1765013400726,1.1401,3031.9,3031.3,0.001]
[1765013400958,0.4824,3031.4,3031.3,0.001]
[1765013401128,0.4824,3031.4,3031.3,1.24759411]
[1765013401309,0.9405,3031.4,3031.3,1.24759411]
[1765013401629,0.4824,3031.4,3031.3,0.001]
[1765013401837,0.9405,3031.4,3031.3,0.001]
[1765013402916,1.3644099,3031.4,3031.3,0.001]
[1765013403121,0.9405,3031.4,3031.3,0.001]
[1765013403323,4.23930583,3031.4,3031.3,0.001]
[1765013404327,4.33930583,3031.4,3031.3,0.001]
[1765013406139,4.64480983,3031.4,3031.3,0.001]
[1765013406437,4.74480983,3031.4,3031.3,0.001]